bitfinex/quotes_ETHUSD_20260216
["timestamp","ask_amount","ask_price","bid_price","bid_amount"]
[1771266488415,0.897,1983.6,1983.2,1.26058894]
[1771266488604,0.897,1983.6,1983.1,1.73336389]
[1771266489300,2.15735243,1983.6,1983.1,0.47274728]
[1771266489498,2.15735243,1983.6,1983.0,1.26068678]
[1771266489499,7.79463951,1983.5,1982.9,1.26077603]
[1771266489704,7.79463951,1983.5,1982.9,0.47274728]
[1771266490196,9.05496157,1983.7,1982.9,0.47274728]
[1771266490402,0.9,1983.5,1982.9,0.47274728]
[1771266490987,2.16041552,1983.5,1983.0,0.47274728]
[1771266491191,2.16041552,1983.5,1982.9,1.26071775]
[1771266491192,7.32424494,1983.3,1982.8,0.47274728]
[1771266491396,0.47039457,1983.2,1982.6,1.46374728]
[1771266491614,9.48466046,1983.5,1982.4,0.908]
[1771266491615,7.32424494,1982.9,1982.4,0.908]
[1771266492229,7.79463951,1982.9,1982.2,0.47274728]
[1771266492924,1.26084325,1982.8,1982.7,0.001]
[1771266493105,1.26084325,1982.8,1982.2,0.47274728]
[1771266493305,1.73123782,1982.8,1982.2,0.47274728]
[1771266493516,8.69663951,1982.7,1982.0,0.47274728]
[1771266493722,7.79463951,1982.5,1981.8,0.47274728]
[1771266493920,0.46369757,1982.3,1981.7,0.0521022]
[1771266495134,1.2612249,1982.2,1981.7,0.0521022]
[1771266495334,0.46369757,1982.1,1981.7,0.0521022]
[1771266495634,0.902,1982.0,1981.2,0.45267942]
[1771266495836,0.902,1982.0,1981.3,0.45267942]
[1771266496541,5.0448996,1982.3,1981.3,0.45267942]
[1771266496542,1.26120784,1982.3,1981.3,0.45267942]
[1771266496725,0.901,1982.2,1981.3,0.45267942]
[1771266498237,0.901,1982.2,1981.5,0.45267942]
[1771266499217,0.9,1982.4,1981.5,0.45267942]
[1771266499422,1.36369757,1982.4,1981.5,0.45267942]
[1771266500133,2.16110566,1982.4,1981.6,1.7142862]
[1771266500520,0.9,1982.4,1981.6,1.7142862]
[1771266500837,0.9,1982.4,1981.7,0.45267942]
[1771266501042,2.16110044,1982.4,1981.7,0.45267942]
[1771266501224,2.16110665,1982.4,1981.7,0.45267942]
[1771266501650,2.62480422,1982.4,1981.7,0.45267942]
[1771266501946,0.46369757,1982.3,1981.6,1.26160678]
[1771266502112,1.72492,1982.3,1981.6,1.26160678]
[1771266504321,1.72492,1982.3,1981.6,1.7142862]
[1771266505243,1.72492,1982.3,1981.8,0.001]
[1771266505244,0.46369757,1982.3,1981.8,0.001]
[1771266505429,0.0011,1982.3,1981.8,0.45367942]
[1771266506232,0.0011,1982.3,1981.8,1.7150961]
[1771266506549,0.0011,1982.3,1981.8,1.26241668]
[1771266508252,0.0011,1982.3,1981.8,1.7150961]
[1771266511353,0.0011,1982.3,1981.8,0.001]
[1771266511554,0.46479757,1982.3,1981.8,1.26247747]
[1771266511849,0.0011,1982.3,1981.8,1.26247747]
[1771266512571,0.0011,1982.3,1981.8,1.71515689]
[1771266512856,0.0011,1982.3,1981.8,0.001]
[1771266513157,0.46479757,1982.3,1981.2,0.45267942]
[1771266513323,0.46369757,1982.2,1981.2,0.45267942]
[1771266513523,0.46369757,1982.0,1981.2,0.45267942]
[1771266513955,0.46369757,1982.0,1981.0,0.45267942]
[1771266514725,1.72511338,1981.9,1981.1,1.26192519]
[1771266515159,0.46369757,1981.8,1981.1,1.26192519]
[1771266515756,0.46369757,1981.8,1981.0,0.45267942]
[1771266515923,0.46369757,1981.8,1981.0,1.71465747]
[1771266516129,0.46369757,1981.8,1980.9,0.45267942]
[1771266516329,1.35369757,1981.8,1980.9,0.45267942]
[1771266516573,0.46369757,1981.7,1980.9,0.45267942]
[1771266516935,1.72530435,1981.6,1981.0,1.26198889]
[1771266517450,0.46369757,1981.6,1981.0,1.26198889]
[1771266518663,1.26158735,1981.7,1981.0,1.71466831]
[1771266518959,1.72528492,1981.7,1981.0,1.71466831]
[1771266523073,1.2623249,1982.3,1981.1,0.45267942]
[1771266523240,6.4176195,1982.2,1981.1,0.45267942]
[1771266523439,1.35069757,1982.1,1981.1,0.45267942]
[1771266523658,0.46369757,1982.0,1981.1,0.45267942]
[1771266523858,1.72509658,1982.0,1981.2,1.75763251]
[1771266525930,1.72509658,1982.0,1981.3,0.49577102]
[1771266526356,2.60811896,1982.2,1981.3,0.49577102]
[1771266527236,0.886,1982.2,1981.3,0.49577102]
[1771266528136,0.886,1982.2,1981.5,0.47025352]
[1771266528737,0.0011,1982.3,1981.5,0.47025352]
[1771266528971,0.45656652,1982.2,1981.2,1.26183595]
[1771266529271,0.45656652,1982.2,1981.1,1.73213554]
[1771266529458,0.45656652,1982.2,1981.1,1.26188202]
[1771266529852,7.34631507,1982.1,1981.2,0.47025352]
[1771266530059,0.45656652,1982.0,1981.2,0.47025352]
[1771266531580,0.45656652,1981.8,1981.1,1.73213554]
[1771266532855,2.60197131,1982.0,1981.2,0.47025352]
[1771266533566,1.2612659,1982.2,1981.4,0.47025352]
[1771266533958,0.0011,1981.9,1981.4,0.47025352]
[1771266535678,0.0011,1981.9,1981.5,1.26167045]
[1771266535853,0.0011,1981.9,1981.5,1.73192397]
[1771266537950,0.0011,1981.9,1981.3,0.47025352]
[1771266540278,0.0011,1981.9,1981.4,1.73198764]
[1771266541653,0.0011,1981.9,1981.3,5.04697681]
[1771266541654,0.45766652,1981.9,1981.2,0.47025352]
[1771266542060,0.0011,1981.9,1981.2,0.47025352]
[1771266543177,0.0011,1981.9,1981.3,1.73205132]
[1771266543676,0.0011,1981.9,1981.3,1.2617978]
[1771266543882,0.0011,1981.9,1981.4,0.47025352]
[1771266544747,0.0011,1981.9,1981.3,1.2617978]
[1771266544953,0.45766652,1981.9,1981.3,1.2617978]
[1771266545153,1.71912132,1981.9,1981.3,1.2617978]
[1771266546878,0.45766652,1981.9,1981.3,1.2617978]
[1771266547088,0.45766652,1981.9,1981.3,1.73205132]
[1771266547296,1.71909879,1981.9,1981.3,1.73205132]
[1771266547586,0.45656652,1981.8,1981.2,1.26181022]
[1771266547751,0.45656652,1981.8,1981.3,0.001]
[1771266550388,1.71810182,1981.8,1981.3,0.001]
[1771266552393,0.45656652,1981.7,1981.3,0.001]
[1771266553483,0.45656652,1981.7,1980.9,1.26304284]
[1771266554288,0.45656652,1981.7,1980.9,0.001]
[1771266554460,0.49903423,1981.5,1980.9,0.001]
[1771266556874,2.63276835,1981.4,1980.9,0.001]
[1771266560779,0.49903423,1981.3,1980.9,0.001]
[1771266560979,0.49903423,1981.3,1980.2,5.04976056]
[1771266560980,0.49903423,1981.1,1980.3,1.26243498]
[1771266561183,0.49903423,1980.9,1980.0,1.26258114]
[1771266561384,8.22469214,1981.0,1980.4,0.48614027]
[1771266561385,0.876,1981.0,1980.4,0.48614027]
[1771266561570,0.876,1981.1,1980.4,0.48614027]
[1771266561962,0.49903423,1981.2,1980.6,0.48614027]
[1771266561963,0.876,1981.2,1980.6,0.48614027]
[1771266562992,2.63690429,1981.2,1980.7,1.26218003]
[1771266563292,1.37503423,1981.2,1980.7,1.26218003]
[1771266564165,0.876,1981.2,1980.7,1.7483203]
[1771266564363,0.876,1981.2,1980.4,0.001]
[1771266564364,0.49903423,1981.1,1980.4,0.001]
[1771266564563,0.49903423,1981.1,1980.4,0.48714027]
[1771266564774,0.49903423,1981.1,1980.4,1.7495033]
[1771266564775,1.37503423,1981.1,1980.4,1.7495033]
[1771266564999,1.26198889,1981.0,1980.4,1.7495033]
[1771266565164,1.26198889,1981.0,1980.4,0.48714027]
[1771266565362,1.76102312,1981.0,1980.4,0.48714027]
[1771266565565,1.76102312,1981.0,1980.4,1.74950847]
[1771266566469,2.1379364,1981.1,1980.5,0.48614027]
[1771266566890,2.63697063,1981.1,1980.4,1.2633682]
[1771266567096,2.63697063,1981.1,1980.4,0.48714027]
[1771266567797,0.49903423,1981.0,1980.4,0.001]
[1771266569701,1.2620526,1980.9,1980.4,0.001]
[1771266570005,1.76108683,1980.9,1980.4,0.001]
[1771266572779,1.76109146,1980.9,1980.4,0.001]
[1771266574708,0.49903423,1980.8,1980.4,0.001]
[1771266575613,1.26205723,1980.9,1980.4,0.001]
[1771266575797,1.76109146,1980.9,1980.4,0.001]
[1771266578198,0.49903423,1980.9,1980.4,0.001]
[1771266578530,1.76108873,1980.9,1980.4,0.001]
[1771266579313,5.0490655,1981.0,1980.4,0.001]
[1771266579314,0.0011,1981.0,1980.4,0.48714027]
[1771266581008,0.0011,1981.0,1980.6,0.48614027]
[1771266583820,0.0011,1981.0,1980.7,1.71712146]
[1771266584410,0.0011,1981.0,1980.5,1.71719795]
[1771266584614,0.0011,1981.0,1980.6,0.45494143]
[1771266586022,0.0011,1981.0,1980.7,1.71712146]
[1771266587522,0.0011,1981.0,1980.7,1.26218003]
[1771266588021,5.04687178,1981.5,1980.8,0.47179526]
[1771266588022,1.26169582,1981.5,1980.8,0.47179526]
[1771266588328,1.72040266,1981.5,1980.8,0.47179526]
[1771266588697,1.72038078,1981.5,1980.8,0.47179526]
[1771266589009,0.45870684,1981.5,1980.8,0.47179526]
[1771266589215,2.62929476,1981.7,1981.0,0.47179526]
[1771266589421,2.62929476,1981.7,1980.9,8.30757989]
[1771266589422,0.45870684,1981.6,1980.9,0.958]
[1771266589622,9.52016781,1981.7,1980.5,7.82137515]
[1771266589623,0.45870684,1981.4,1980.5,7.82137515]
[1771266589822,0.45870684,1981.2,1980.5,2.6920775]
[1771266590027,1.72063203,1981.1,1980.5,2.6920775]
[1771266590623,0.45870684,1981.0,1980.4,1.26331594]
[1771266590929,0.45870684,1981.0,1980.5,0.958]
[1771266591221,0.45870684,1981.0,1980.5,0.959]
[1771266591425,0.0011,1980.9,1980.5,0.959]
[1771266591601,0.45980684,1980.9,1980.5,0.001]
[1771266591800,0.0011,1980.9,1980.5,0.001]
[1771266595733,0.0011,1981.0,1980.6,0.47179526]
[1771266598103,0.0011,1981.0,1980.7,1.26218003]
[1771266598633,0.0011,1981.8,1980.7,8.61175992]
[1771266598634,1.36770684,1981.7,1980.7,8.61175992]
[1771266598834,0.0011,1981.8,1981.2,0.47179526]
[1771266599021,0.0011,1981.8,1981.3,8.78437515]
[1771266599220,0.0011,1981.8,1981.3,0.963]
[1771266599221,0.45870684,1981.7,1981.3,0.963]
[1771266599932,0.47057709,1981.7,1981.0,0.963]
[1771266600139,0.45870684,1981.6,1981.0,0.963]
[1771266600332,0.45870684,1981.2,1980.5,0.001]
[1771266600513,0.45870684,1981.2,1980.5,1.92930433]
[1771266601134,0.45870684,1981.4,1980.6,7.82137515]
[1771266601331,0.45870684,1981.4,1980.6,0.47179526]
[1771266601530,0.45870684,1981.4,1980.6,7.82137515]
[1771266601725,0.45870684,1981.4,1980.7,0.47179526]
[1771266602233,0.45870684,1981.4,1980.5,0.667]
[1771266602234,0.45870684,1981.2,1980.5,0.667]
[1771266602404,0.47057709,1981.1,1980.5,0.001]
[1771266602605,0.45870684,1981.0,1980.6,0.962]
[1771266604930,0.47057709,1980.9,1980.6,0.962]
[1771266605732,0.47057709,1980.9,1980.6,0.963]
[1771266606314,2.19134048,1980.9,1980.6,0.963]
[1771266606708,0.45870684,1980.8,1980.6,0.963]
[1771266607638,0.47057709,1980.9,1980.6,0.963]
[1771266607841,0.47057709,1980.9,1980.6,2.2252254]
[1771266608745,0.47057709,1980.9,1980.6,0.963]
[1771266609858,0.47057709,1980.9,1980.6,1.43479526]
[1771266610240,0.36982375,1980.9,1980.7,0.47179526]
[1771266611137,0.0011,1981.1,1980.7,0.47179526]
[1771266611945,0.0011,1981.1,1980.8,1.26211631]
[1771266613447,0.0011,1981.1,1980.7,1.26214107]
[1771266616039,0.49724311,1981.1,1980.6,2.22519693]
[1771266617051,0.49724311,1981.1,1980.6,0.001]
[1771266617368,0.49724311,1981.1,1980.5,0.001]
[1771266618628,0.49614311,1980.9,1980.5,0.001]
[1771266620234,1.26307125,1981.1,1980.6,0.001]
[1771266620428,1.75921436,1981.1,1980.6,0.001]
[1771266621730,0.49614311,1981.0,1980.6,0.001]
[1771266622753,0.49614311,1980.8,1980.6,0.001]
[1771266624842,1.75832314,1980.7,1980.6,0.001]
[1771266625840,0.49614311,1980.7,1980.6,0.001]
[1771266627234,1.26216377,1980.8,1980.6,0.001]
[1771266627434,1.75824978,1980.9,1980.6,0.001]
[1771266628563,0.49614311,1980.8,1980.6,0.001]
[1771266629434,1.26218003,1980.7,1980.6,0.001]
[1771266630866,1.75832314,1980.7,1980.6,0.001]
[1771266631040,0.49614311,1980.6,1980.5,0.001]
[1771266631236,0.49614311,1980.5,1979.9,2.2166826]
[1771266631442,1.26237123,1980.4,1979.9,2.21667254]
[1771266631636,5.54537888,1980.5,1979.9,2.21667254]
[1771266631637,0.49614311,1980.5,1979.9,2.21667254]
[1771266631858,0.49614311,1980.5,1979.9,2.70125202]
[1771266632164,1.75819571,1980.9,1980.0,0.48457948]
[1771266632669,1.26200386,1981.0,1980.4,0.48457948]
[1771266632856,0.49614311,1980.9,1980.2,0.48457948]
[1771266633041,0.49614311,1980.9,1980.0,0.48457948]
[1771266633237,0.49614311,1980.7,1979.9,2.21667254]
[1771266633460,0.49614311,1980.7,1979.9,2.70125202]
[1771266634259,1.75838687,1980.6,1980.1,0.001]
[1771266634842,0.49614311,1980.6,1980.1,0.001]
[1771266635974,1.75837456,1980.7,1980.1,0.48557948]
[1771266636170,1.26216224,1980.8,1980.1,0.48557948]
[1771266636371,5.54448426,1980.9,1980.3,0.48457948]
[1771266636372,1.75822899,1980.9,1980.3,0.48457948]
[1771266636674,1.75820525,1980.9,1980.3,0.48457948]
[1771266636871,0.49614311,1980.9,1980.3,0.48457948]
[1771266637073,0.0011,1981.0,1980.4,0.48457948]
[1771266637461,0.0011,1981.0,1980.6,0.48457948]
[1771266638276,0.0011,1981.0,1980.7,1.26218003]
[1771266638689,0.0011,1981.0,1980.7,1.74675951]
[1771266640080,0.0011,1981.0,1980.8,0.48457948]
[1771266641150,0.0011,1981.0,1980.9,1.2620526]
[1771266641874,0.0011,1981.0,1980.8,1.26207311]
[1771266642077,0.0011,1981.0,1980.6,0.48457948]
[1771266642078,0.0011,1981.0,1980.6,1.74677126]
[1771266643270,0.0011,1981.0,1980.5,5.04897741]
[1771266643271,0.0011,1981.0,1980.7,0.48457948]
[1771266643784,0.0011,1981.0,1980.8,0.96]
[1771266644374,0.0011,1981.2,1980.9,0.48182125]
[1771266644975,0.0011,1981.6,1980.9,0.48182125]
[1771266645180,0.46552695,1981.6,1981.0,1.26198889]
[1771266645390,0.46552695,1981.6,1980.9,1.74382237]
[1771266645568,0.46552695,1981.6,1980.8,2.22208896]
[1771266648387,0.49043588,1981.4,1980.8,2.22208896]
[1771266649291,0.0011,1981.5,1980.9,0.48107173]
[1771266649706,0.49153588,1981.5,1980.9,0.48107173]
[1771266650890,0.49153588,1981.5,1981.0,1.26198889]
[1771266652311,1.75323121,1981.5,1981.0,1.26198889]
[1771266652916,0.49153588,1981.5,1981.0,1.26198889]
[1771266653100,0.49153588,1981.5,1980.9,5.04800778]
[1771266655884,0.49153588,1981.5,1980.9,5.52907951]
[1771266659997,0.0011,1981.5,1981.0,0.48107173]
[1771266661122,0.0011,1981.5,1981.1,1.74299692]
[1771266661291,0.0011,1981.5,1981.2,0.48107173]
[1771266662292,0.0011,1981.4,1981.2,1.44407173]
[1771266662900,0.0011,1981.6,1981.3,0.48107173]
[1771266663100,0.0011,1981.6,1981.4,1.26173412]
[1771266667216,0.0011,1981.8,1981.5,0.972]
[1771266667391,0.0011,1981.8,1981.5,1.45307173]
[1771266670009,0.49153588,1981.8,1981.1,1.26192519]
[1771266670214,0.49153588,1981.8,1981.2,0.976]
[1771266671414,0.49153588,1981.8,1981.0,1.26294585]
[1771266671621,0.49153588,1981.8,1981.2,0.976]
[1771266672028,0.49043588,1981.6,1981.2,0.976]
[1771266674000,0.49043588,1981.6,1981.2,2.23785193]
[1771266675036,0.49043588,1981.6,1981.3,0.001]
[1771266675708,0.49153588,1981.6,1981.3,0.001]
[1771266682637,0.0011,1981.6,1981.3,0.001]
[1771266683338,0.4568826,1981.6,1981.3,0.001]
[1771266686760,0.0011,1981.6,1981.3,0.001]
[1771266688130,0.0011,1981.6,1981.4,0.001]
[1771266689627,0.0011,1981.6,1981.4,0.46173993]
[1771266690031,0.0011,1981.6,1981.5,1.26167045]
[1771266695354,0.0011,1981.6,1981.5,2.24467045]
[1771266698435,0.0011,1981.9,1981.5,10.0495034]
[1771266699253,0.0011,1981.9,1981.5,2.70541038]
[1771266700326,0.0011,1981.9,1981.6,0.001]
[1771266701239,0.0011,1981.9,1981.6,7.34509302]
[1771266701438,0.0011,1981.7,1981.6,7.34509302]
[1771266701637,0.0011,1981.9,1981.7,1.26154311]
[1771266701859,0.0011,1981.9,1981.8,0.994]
[1771266703539,0.0011,1981.9,1981.8,2.25547946]
[1771266707760,0.0011,1982.1,1981.8,2.71525451]
[1771266708360,0.0011,1982.4,1981.9,7.80738116]
[1771266708540,0.0011,1982.4,1982.1,7.80738116]
[1771266708742,0.0011,1982.6,1982.3,1.26116127]
[1771266712452,1.75977385,1983.1,1982.4,7.34409302]
[1771266712769,0.49907649,1983.0,1982.5,1.01]
[1771266713349,0.49907649,1982.8,1982.0,5.04538723]
[1771266713653,0.0011,1982.5,1982.1,1.011]
[1771266718177,0.0011,1982.5,1981.7,5.04570308]
[1771266718178,0.49907649,1982.4,1981.5,2.17162472]
[1771266718374,0.49907649,1982.4,1981.6,1.016]
[1771266719348,0.49907649,1982.4,1981.6,2.2776065]
[1771266719655,0.49907649,1982.4,1981.6,1.016]
[1771266720173,0.49907649,1982.2,1981.6,1.016]
[1771266721477,0.49907649,1982.4,1982.0,7.34409302]
[1771266722050,0.0011,1982.5,1982.0,8.82138116]
[1771266722372,0.50017649,1982.5,1982.1,1.26128853]
[1771266722775,0.50017649,1982.5,1982.0,2.27530664]
[1771266722954,0.49907649,1982.4,1981.6,1.26255839]
[1771266723149,0.49907649,1982.4,1981.6,2.27755839]
[1771266723349,0.49907649,1982.4,1981.6,2.27759839]
[1771266724578,0.49907649,1982.2,1981.6,2.27759839]
[1771266724761,0.49907649,1982.4,1981.9,7.34409302]
[1771266726180,0.49907649,1982.4,1982.2,0.001]
[1771266726878,0.49907649,1982.3,1982.2,0.001]
[1771266729064,1.76023776,1982.3,1982.2,0.001]
[1771266729262,0.49907649,1982.2,1982.0,0.001]
[1771266729666,1.76021779,1982.4,1982.0,0.001]
[1771266730367,0.49907649,1982.3,1982.0,0.001]
[1771266732985,1.76024042,1982.3,1982.0,0.001]
[1771266733192,0.49907649,1982.1,1982.0,0.001]
[1771266736259,1.76036502,1982.1,1982.0,0.001]
[1771266737170,0.49907649,1982.1,1982.0,0.001]
[1771266738786,1.76036502,1982.1,1982.0,0.001]
[1771266739081,1.72473917,1982.3,1982.0,0.001]
[1771266739772,0.46353913,1982.2,1982.0,0.001]
[1771266749671,0.46353913,1982.1,1982.0,0.001]
[1771266750396,0.46463913,1982.1,1982.0,0.001]
[1771266751571,1.72489129,1982.0,1981.9,0.001]
[1771266751967,0.46353913,1982.0,1981.9,0.001]
[1771266752572,0.0011,1982.1,1981.9,0.001]
[1771266756904,0.46463913,1982.1,1981.9,0.001]
[1771266759112,1.26238978,1982.1,1981.9,0.001]
[1771266759597,1.72592891,1982.1,1981.9,0.001]
[1771266759905,0.46463913,1982.1,1981.9,0.001]
[1771266760801,1.26239417,1982.1,1981.9,0.001]
[1771266761105,1.7259333,1982.1,1981.9,0.001]
[1771266762883,0.46353913,1982.0,1981.9,0.001]
[1771266763409,0.46463913,1982.0,1981.9,0.001]
[1771266765508,0.0011,1982.0,1981.9,0.001]
[1771266765805,0.0011,1982.2,1981.9,0.47462466]
[1771266766003,0.0011,1982.4,1982.0,0.47362466]
[1771266766210,0.0011,1982.8,1982.2,0.47362466]
[1771266766408,1.26194829,1982.8,1982.2,0.47362466]
[1771266766703,0.48164646,1982.7,1982.0,0.47362466]
[1771266767683,1.74259561,1982.7,1982.1,1.26128853]
[1771266768700,1.26195247,1982.8,1982.2,0.49324348]
[1771266768882,0.0011,1982.8,1982.2,0.49324348]
[1771266769080,1.26195103,1982.8,1982.2,0.49324348]
[1771266769693,1.26195103,1982.8,1982.2,1.75441343]
[1771266770306,1.26195103,1982.8,1982.2,0.49324348]
[1771266770511,1.73274654,1982.8,1982.2,0.49324348]
[1771266770713,0.47079551,1982.7,1982.0,1.75454891]
[1771266772113,0.47079551,1982.7,1981.9,6.95352586]
[1771266772114,0.47079551,1982.5,1981.9,3.16941211]
[1771266772796,0.47079551,1982.5,1981.9,3.66265559]
[1771266773188,1.26196874,1982.8,1982.2,0.49324348]
[1771266773407,1.73276425,1982.8,1982.2,0.49324348]
[1771266773794,0.0011,1982.8,1982.2,0.49324348]
[1771266773999,0.0011,1982.8,1982.4,0.49324348]
[1771266775614,0.0011,1982.8,1982.3,1.26116127]
[1771266775788,0.0011,1982.8,1982.3,1.75440475]
[1771266775990,0.0011,1982.6,1982.3,1.75440475]
[1771266781027,0.47189551,1982.6,1982.1,0.001]
[1771266781192,0.47189551,1982.6,1982.1,1.26227723]
[1771266781593,0.47189551,1982.6,1982.1,0.001]
[1771266781999,0.0011,1982.6,1982.2,0.49324348]
[1771266782199,0.0011,1982.8,1982.4,0.49324348]
[1771266782402,0.0011,1982.8,1982.3,7.34546476]
[1771266782820,0.0011,1982.8,1982.3,7.83870824]
[1771266783528,0.0011,1982.8,1982.4,1.26109765]
[1771266787097,0.0011,1982.8,1982.4,1.75434113]
[1771266787400,0.0011,1982.8,1982.5,0.49324348]
[1771266788098,0.0011,1982.8,1982.6,1.75421392]
[1771266788510,0.0011,1982.7,1982.6,1.75421392]
[1771266789720,0.0011,1982.7,1981.5,0.001]
[1771266789721,0.1024,1982.4,1981.5,0.001]
[1771266789927,0.47079551,1982.1,1981.5,0.001]
[1771266790109,1.73214767,1982.0,1981.5,0.001]
[1771266790516,3.01595031,1981.9,1981.5,0.001]
[1771266790718,3.01595031,1981.8,1981.5,0.001]
[1771266790930,3.01595031,1981.7,1981.5,0.001]
[1771266791105,1.73214767,1982.0,1981.5,0.001]
[1771266791427,3.01629946,1981.9,1981.5,0.0056]
[1771266791608,3.01629946,1981.8,1981.5,0.0056]
[1771266791803,3.01629946,1981.7,1981.5,0.0056]
[1771266792009,0.47079551,1981.9,1981.5,0.0056]
[1771266792225,4.27632325,1981.8,1981.3,0.001]
[1771266792414,1.26147946,1981.8,1981.3,0.001]
[1771266794005,1.26147946,1981.8,1981.3,0.49908104]
[1771266794204,5.04442482,1982.4,1981.4,0.49808104]
[1771266794401,3.01238471,1982.3,1981.4,0.49808104]
[1771266794723,5.04442482,1982.4,1981.4,0.49808104]
[1771266795030,3.01239419,1982.3,1981.4,0.49808104]
[1771266795202,5.04442482,1982.4,1981.4,0.49808104]
[1771266795397,3.01249222,1982.3,1981.4,0.49808104]
[1771266795606,5.04442482,1982.4,1981.4,0.49808104]
[1771266795923,3.01262101,1982.3,1981.4,0.49808104]
[1771266796124,5.04442482,1982.4,1981.4,0.49808104]
[1771266796329,1.2612249,1982.2,1981.6,0.49808104]
[1771266798333,5.04439079,1982.4,1981.6,0.49808104]
[1771266798528,3.0120541,1982.3,1981.6,0.49808104]
[1771266798716,5.5175039,1982.4,1981.6,0.49808104]
[1771266798915,3.01206075,1982.3,1981.6,0.49808104]
[1771266799116,5.5175039,1982.4,1981.6,0.49808104]
[1771266799317,3.01162613,1982.3,1981.6,0.49808104]
[1771266799536,5.5175039,1982.4,1981.6,0.49808104]
[1771266799711,3.01172069,1982.3,1981.6,0.49808104]
[1771266800040,5.5175039,1982.4,1981.6,0.49808104]
[1771266800336,3.01141204,1982.3,1981.6,0.49808104]
[1771266800518,1.2612249,1982.2,1981.7,0.001]
[1771266802242,2.12008231,1982.5,1981.7,0.49908104]
[1771266802742,2.12008231,1982.5,1981.8,0.49808104]
[1771266805413,3.01193172,1982.4,1981.8,0.49808104]
[1771266805612,2.12008231,1982.5,1981.8,0.49808104]
[1771266805923,3.01193231,1982.4,1981.8,0.49808104]
[1771266806123,2.12008231,1982.5,1981.8,0.49808104]
[1771266806314,3.0111997,1982.4,1981.8,0.49808104]
[1771266806640,2.12008231,1982.5,1981.8,0.49808104]
[1771266807449,1.26116127,1982.3,1981.8,0.49808104]
[1771266808030,1.26116127,1982.3,1981.9,0.49808104]
[1771266809528,1.26103404,1982.5,1981.9,0.49808104]
[1771266809720,3.01338137,1982.4,1981.9,0.49808104]
[1771266809922,1.26103404,1982.5,1981.9,0.49808104]
[1771266810123,3.01322951,1982.4,1981.9,0.49808104]
[1771266810323,1.26103404,1982.5,1981.9,0.49808104]
[1771266810525,3.0135648,1982.4,1981.9,0.49808104]
[1771266810747,1.26103404,1982.5,1981.9,0.49808104]
[1771266810945,3.01350108,1982.4,1981.9,0.49808104]
[1771266811132,1.26103404,1982.5,1981.9,0.49808104]
[1771266811330,3.0133267,1982.4,1981.9,0.49808104]
[1771266811531,1.26103404,1982.5,1981.9,0.49808104]
[1771266811832,1.26116127,1982.3,1981.9,0.49808104]
[1771266812952,0.47421311,1982.7,1982.0,0.49808104]
[1771266813164,1.26202773,1982.7,1982.0,0.49808104]
[1771266813941,1.26202773,1982.7,1982.2,0.49808104]
[1771266815951,0.0011,1982.7,1982.2,1.75930576]
[1771266818051,0.0011,1982.7,1982.2,0.49808104]
[1771266819039,0.0011,1982.3,1982.2,1.75930594]
[1771266820170,0.0011,1982.3,1982.2,0.49808104]
[1771266833668,0.0011,1982.3,1982.2,1.75930594]
[1771266833857,0.0011,1982.5,1982.2,1.75930594]
[1771266835055,0.0011,1982.5,1982.2,0.49808104]
[1771266836972,0.0011,1982.5,1982.2,1.75929329]
[1771266837464,0.0011,1982.5,1982.2,0.49808104]
[1771266837666,0.0011,1982.5,1982.1,1.73995751]
[1771266839075,0.0011,1982.5,1982.1,0.47871442]
[1771266840259,0.47856135,1982.5,1981.9,0.995]
[1771266840445,3.50486466,1982.4,1981.9,2.25640927]
[1771266840650,0.47856135,1982.5,1981.9,2.73512369]
[1771266840850,3.50488373,1982.4,1981.9,2.25640927]
[1771266841049,0.47746135,1982.3,1981.9,2.25640927]
[1771266844078,0.47856135,1982.5,1981.9,2.25640927]
[1771266844380,3.50595619,1982.4,1981.9,2.25640927]
[1771266844677,3.02849484,1982.3,1981.9,2.25640927]
[1771266844877,0.47746135,1982.4,1981.9,2.25640927]
[1771266845079,3.02791528,1982.3,1981.9,2.25640927]
[1771266845280,0.47746135,1982.4,1981.9,2.25640927]
[1771266845480,3.02781077,1982.3,1981.9,2.25640927]
[1771266845655,0.47746135,1982.4,1981.9,2.25640927]
[1771266845856,3.02775377,1982.3,1981.9,2.25640927]
[1771266846189,1.73856236,1982.4,1981.9,2.25640927]
[1771266846375,3.02763656,1982.3,1981.9,2.25640927]
[1771266846580,0.47746135,1982.4,1981.9,2.25640927]
[1771266846776,0.0011,1982.2,1981.9,2.25640927]
[1771266849187,0.0011,1982.2,1981.9,0.995]
[1771266853693,0.0011,1982.2,1981.9,2.25640862]
[1771266856207,0.46854526,1982.2,1981.9,0.995]
[1771266858778,0.46854526,1982.2,1982.0,0.001]
[1771266862222,0.0011,1982.2,1982.0,0.001]
[1771266866246,0.0011,1982.2,1982.0,0.47446611]
[1771266866389,0.0011,1982.5,1982.1,0.47346611]
[1771266866593,3.02907937,1982.4,1982.1,0.47346611]
[1771266866896,0.0011,1982.5,1982.1,0.47346611]
[1771266867492,0.0011,1982.5,1982.1,1.73472513]
[1771266869909,0.0011,1982.5,1982.2,0.47346611]
[1771266870281,0.0011,1982.7,1982.4,0.47346611]
[1771266870457,0.46744526,1983.1,1982.3,1.008]
[1771266870458,0.46744526,1983.4,1982.6,0.47346611]
[1771266870607,0.46744526,1983.5,1982.8,0.47346611]
[1771266870811,7.80735369,1983.2,1982.7,1.008]
[1771266871144,0.46744526,1983.1,1982.7,1.008]
[1771266871309,7.33990843,1983.2,1982.7,1.008]
[1771266871710,7.80735369,1983.2,1982.7,1.008]
[1771266872032,9.06797063,1983.2,1982.7,1.008]
[1771266873446,0.46744526,1983.1,1982.7,1.008]
[1771266873651,8.60052537,1983.2,1982.3,0.909]
[1771266873652,7.80735369,1982.8,1982.3,0.909]
[1771266873810,7.33990843,1982.8,1982.3,2.17015545]
[1771266874212,0.46744526,1982.7,1982.3,0.909]
[1771266874638,7.80735369,1982.6,1982.3,0.909]
[1771266877348,9.06835647,1982.6,1982.3,0.909]
[1771266877551,9.06835647,1982.6,1982.2,1.007]
[1771266877552,0.46744526,1982.5,1982.2,1.007]
[1771266878056,0.46744526,1982.6,1982.2,2.26822103]
[1771266878354,1.32944526,1982.8,1982.2,2.74168714]
[1771266879539,2.59028863,1982.8,1982.2,2.74168714]
[1771266882259,0.46744526,1982.7,1982.2,2.26822103]
[1771266883437,0.46744526,1982.7,1982.3,0.001]